fUST/lending_fUST_20240508
["ID","MTS","AMOUNT","RATE_DAILY","PERIOD"]
[326602122,1715127039180,-500.0,0.00015201,2]
[326602123,1715127039190,-727.29,0.00015201,2]
[326602124,1715127039199,-500.0,0.00015201,2]
[326602125,1715127039209,-500.0,0.00015201,2]
[326602126,1715127039219,-500.0,0.00015201,2]
[326602127,1715127039228,-500.0,0.00015201,2]
[326602128,1715127039239,-500.0,0.00015201,2]
[326602129,1715127039248,-500.0,0.00015201,2]
[326602130,1715127039256,-500.0,0.00015201,2]
[326602131,1715127039263,-1093.41,0.00015201,2]
[326602132,1715127039272,-500.0,0.00015201,2]
[326602133,1715127039287,-467.82057162,0.00015201,2]
[326602134,1715127039295,-500.0,0.00015202,2]
[326602135,1715127039304,-186.14165862,0.00015374,2]
[326602136,1715127039313,-500.0,0.00015473,2]
[326602137,1715127039323,-589.28,0.00015473,2]
[326602138,1715127039333,-909.49,0.00015473,2]
[326602139,1715127039341,-1144.44,0.00015473,2]
[326602140,1715127039349,-500.0,0.00015473,2]
[326602141,1715127039357,-1103.39,0.00015473,2]
[326602142,1715127039365,-500.0,0.00015473,2]
[326602143,1715127039372,-1803.34,0.00015473,2]
[326602144,1715127039381,-2185.53,0.00015473,2]
[326602145,1715127039389,-577.82,0.00015473,2]
[326602146,1715127039397,-1686.7,0.00015473,2]
[326602147,1715127039405,-1851.41,0.00015473,2]
[326602148,1715127039413,-1103.47834097,0.00015473,2]
[326602156,1715127041610,-564.686792,0.00015473,2]
[326602203,1715127066119,154.15204908,0.000211,9]
[326602204,1715127066147,4845.84795092,0.000211,9]
[326602207,1715127261101,523.7123546,9.999e-05,2]
[326602208,1715127304718,160.0,0.00021983,20]
[326602209,1715127305146,160.0,0.00021875,19]
[326602210,1715127309176,160.0,0.00021011,11]
[326602211,1715127309633,160.0,0.00020903,10]
[326602212,1715127310442,160.0,0.00020795,9]
[326602251,1715128233473,-152.67515821,0.00015097,2]
[326602253,1715128233482,-421.2577342,0.00015097,2]
[326602254,1715128233491,-203.87238744,0.00015098,2]
[326602255,1715128233501,-193.97227624,0.00015195,2]
[326602256,1715128233510,-1398.51943807,0.00015195,2]
[326602257,1715128233520,-2246.17621413,0.00015196,2]
[326602258,1715128233530,-500.0,0.00015196,2]
[326602259,1715128233539,-500.0,0.00015196,2]
[326602260,1715128233548,-108.91365202,0.00015196,2]
[326602261,1715128233565,-391.08634798,0.00015196,2]
[326602262,1715128233574,-185.49437513,0.00015196,2]
[326602343,1715128238285,-314.50562487,0.00015196,2]
[326602346,1715128238295,-3725.81,0.00015196,2]
[326602349,1715128238304,-500.0,0.00015196,2]
[326602352,1715128238315,-3174.63,0.00015196,2]
[326602355,1715128238324,-500.0,0.00015196,2]
[326602357,1715128238333,-500.0,0.00015196,2]
[326602361,1715128238342,-500.0,0.00015196,2]
[326602363,1715128238351,-2373.36,0.00015196,2]
[326602366,1715128238361,-500.0,0.00015196,2]
[326602369,1715128238370,-913.98,0.00015196,2]
[326602372,1715128238379,-500.0,0.00015196,2]
[326602375,1715128238388,-500.0,0.00015196,2]
[326602378,1715128238397,-500.0,0.00015196,2]
[326602382,1715128238407,-1261.8,0.00015196,2]
[326602384,1715128238416,-1048.71707723,0.00015197,2]
[326602386,1715128238425,-309.30410357,0.00015197,2]
[326602388,1715128238435,-555.99993966,0.00015197,2]
[326602390,1715128238444,-31265.73505526,0.00015197,2]
[326602394,1715128238453,-500.0,0.00015197,2]
[326602397,1715128238462,-500.0,0.00015197,2]
[326602399,1715128238471,-964.43,0.00015197,2]
[326602401,1715128238481,-500.0,0.00015197,2]
[326602403,1715128238490,-1180.48,0.00015197,2]
[326602404,1715128238499,-500.0,0.00015197,2]
[326602406,1715128238509,-574.01,0.00015197,2]
[326602408,1715128238518,-500.0,0.00015197,2]
[326602410,1715128238527,-500.0,0.00015197,2]
[326602413,1715128238537,-500.0,0.00015197,2]
[326602415,1715128238547,-1860.14,0.00015197,2]
[326602416,1715128238559,-1135.95,0.00015197,2]
[326602418,1715128238568,-2128.89,0.00015197,2]
[326602420,1715128238577,-500.0,0.00015197,2]
[326602422,1715128238586,-1727.73,0.00015197,2]
[326602424,1715128238595,-500.0,0.00015197,2]
[326602426,1715128238604,-1875.79,0.00015197,2]
[326602428,1715128238614,-2016.03,0.00015197,2]
[326602431,1715128238623,-1943.14,0.00015197,2]
[326602432,1715128238633,-500.0,0.00015197,2]
[326602435,1715128238643,-3163.05,0.00015197,2]
[326602437,1715128238658,-500.0,0.00015197,2]
[326602439,1715128238668,-500.0,0.00015197,2]
[326602441,1715128238678,-1388.20301822,0.00015198,2]
[326602443,1715128238688,-2103.12155767,0.00015198,2]
[326602445,1715128238699,-500.0,0.00015198,2]
[326602447,1715128238710,-500.0,0.00015198,2]
[326602449,1715128238719,-500.0,0.00015198,2]
[326602451,1715128238728,-521.57,0.00015198,2]
[326602453,1715128238738,-169.79,0.00015198,2]
[326602455,1715128238747,-500.0,0.00015198,2]
[326602457,1715128238756,-500.0,0.00015198,2]
[326602459,1715128238765,-449.1376245,0.00015198,2]
[326602461,1715128238774,-500.0,0.00015198,2]
[326602463,1715128238784,-500.0,0.00015198,2]
[326602465,1715128238794,-500.0,0.00015198,2]
[326602467,1715128238803,-1130.09,0.00015198,2]
[326602469,1715128238816,-500.0,0.00015198,2]
[326602471,1715128238826,-500.0,0.00015198,2]
[326602473,1715128238836,-500.0,0.00015198,2]
[326602475,1715128238845,-572.55,0.00015198,2]
[326602477,1715128238855,-500.0,0.00015198,2]
[326602479,1715128238863,-557.19,0.00015198,2]
[326602481,1715128238873,-500.0,0.00015198,2]
[326602483,1715128238882,-511.11491914,0.00015198,2]
[326602485,1715128238891,-193.03431328,0.00015198,2]
[326602486,1715128238900,-500.0,0.00015198,2]
[326602489,1715128238911,-255.31218186,0.00015198,2]
[326602490,1715128238920,-500.0,0.00015198,2]
[326602492,1715128238929,-500.0,0.00015198,2]
[326602495,1715128238938,-500.0,0.00015198,2]
[326602496,1715128238948,-500.0,0.00015198,2]
[326602499,1715128238957,-505.31848335,0.00015198,2]
[326602500,1715128238966,-500.0,0.00015198,2]
[326602502,1715128238976,-500.0,0.00015198,2]
[326602504,1715128238985,-500.0,0.00015198,2]
[326602506,1715128238994,-585.41723663,0.00015198,2]
[326602509,1715128239004,-500.0,0.00015198,2]
[326602510,1715128239013,-151.0,0.00015198,2]
[326602513,1715128239022,-1076.86,0.00015198,2]
[326602514,1715128239033,-151.14814863,0.00015198,2]
[326602516,1715128239043,-500.0,0.00015198,2]
[326602518,1715128239053,-500.84800805,0.00015198,2]
[326602520,1715128239066,-500.0,0.00015198,2]
[326602522,1715128239076,-500.0,0.00015198,2]
[326602523,1715128239085,-2304.01,0.00015198,2]
[326602524,1715128239095,-151.0,0.00015198,2]
[326602525,1715128239105,-411.33645221,0.00015198,2]
[326602526,1715128239114,-1065.98,0.00015198,2]
[326602527,1715128239125,-500.0,0.00015198,2]
[326602528,1715128239134,-500.0,0.00015198,2]
[326602529,1715128239145,-12276.08,0.00015198,2]
[326602530,1715128239155,-151.0,0.00015198,2]
[326602531,1715128239165,-151.0,0.00015198,2]
[326602532,1715128239174,-502.57475793,0.00015198,2]
[326602533,1715128239184,-500.0,0.00015198,2]
[326602534,1715128239194,-500.0,0.00015198,2]
[326602535,1715128239204,-672.34,0.00015198,2]
[326602536,1715128239214,-500.0,0.00015198,2]
[326602537,1715128239223,-500.0,0.00015198,2]
[326602538,1715128239234,-3993.24,0.00015198,2]
[326602539,1715128239243,-227.35372262,0.00015198,2]
[326602540,1715128239253,-500.38,0.00015198,2]
[326602541,1715128239263,-500.0,0.00015198,2]
[326602542,1715128239272,-619.57524388,0.00015198,2]
[326602543,1715128239282,-500.0,0.00015198,2]
[326602544,1715128239292,-500.0,0.00015198,2]
[326602545,1715128239465,-151.0,0.00015198,2]
[326602546,1715128239475,-942.02,0.00015198,2]
[326602547,1715128239485,-151.0,0.00015198,2]
[326602548,1715128239495,-151.0,0.00015198,2]
[326602549,1715128239504,-151.0,0.00015198,2]
[326602550,1715128239514,-500.0,0.00015198,2]
[326602551,1715128239524,-500.0,0.00015198,2]
[326602552,1715128239534,-500.0,0.00015198,2]
[326602553,1715128239544,-500.0,0.00015198,2]
[326602554,1715128239553,-500.0,0.00015198,2]
[326602555,1715128239566,-500.0,0.00015198,2]
[326602556,1715128239575,-500.0,0.00015198,2]
[326602557,1715128239585,-500.0,0.00015198,2]
[326602558,1715128239594,-500.0,0.00015199,2]
[326602559,1715128239603,-164.55,0.00015199,2]
[326602560,1715128239614,-500.0,0.00015199,2]
[326602561,1715128239623,-500.0,0.00015199,2]
[326602562,1715128239633,-500.0,0.00015199,2]
[326602563,1715128239643,-500.0,0.00015199,2]
[326602564,1715128239654,-733.0,0.00015199,2]
[326602565,1715128239669,-500.0,0.00015199,2]
[326602566,1715128239679,-500.0,0.00015199,2]
[326602567,1715128239690,-500.0,0.00015199,2]
[326602568,1715128239702,-1104.25,0.00015199,2]
[326602569,1715128239711,-500.0,0.00015199,2]
[326602570,1715128239721,-500.0,0.00015199,2]
[326602571,1715128239731,-500.0,0.00015199,2]
[326602572,1715128239742,-151.0,0.00015199,2]
[326602573,1715128239753,-151.0,0.00015199,2]
[326602574,1715128239763,-151.0,0.00015199,2]
[326602575,1715128239773,-151.0,0.00015199,2]
[326602576,1715128239782,-151.0,0.00015199,2]
[326602577,1715128239792,-500.0,0.000152,2]
[326602578,1715128239802,-500.0,0.000152,2]
[326602579,1715128239814,-500.0,0.000152,2]
[326602580,1715128239824,-152.67515821,0.00015299,2]
[326602581,1715128239834,-159.99381496,0.00015321,2]
[326602582,1715128239844,-431.34531645,0.00015372,2]
[326602583,1715128239853,-620.01198991,0.0001539,2]
[326602584,1715128239864,-500.0,0.0001547,2]
[326602585,1715128239873,-3725.81,0.0001547,2]
[326602586,1715128239884,-500.0,0.0001547,2]
[326602587,1715128239893,-3174.63,0.0001547,2]
[326602588,1715128239902,-500.0,0.0001547,2]
[326602589,1715128239912,-500.0,0.0001547,2]
[326602590,1715128239921,-500.0,0.0001547,2]
[326602591,1715128239931,-2373.36,0.0001547,2]
[326602592,1715128239940,-500.0,0.0001547,2]
[326602593,1715128239950,-913.98,0.0001547,2]
[326602594,1715128239960,-500.0,0.0001547,2]
[326602595,1715128239970,-500.0,0.0001547,2]
[326602596,1715128239979,-500.0,0.0001547,2]
[326602597,1715128239989,-1261.8,0.0001547,2]
[326602598,1715128239999,-500.0,0.00015471,2]
[326602599,1715128240008,-196.651438,0.00015471,2]
[326602600,1715128240018,-500.0,0.00015471,2]
[326602601,1715128240028,-964.43,0.00015471,2]
[326602602,1715128240038,-500.0,0.00015471,2]
[326602603,1715128240047,-1180.48,0.00015471,2]
[326602604,1715128240058,-500.0,0.00015471,2]
[326602605,1715128240069,-574.01,0.00015471,2]
[326602606,1715128240079,-500.0,0.00015471,2]
[326602607,1715128240088,-500.0,0.00015471,2]
[326602608,1715128240099,-1860.14,0.00015471,2]
[326602609,1715128240108,-1135.95,0.00015471,2]
[326602610,1715128240119,-2128.89,0.00015471,2]
[326602611,1715128240128,-500.0,0.00015471,2]
[326602612,1715128240138,-151.0,0.00015471,2]
[326602613,1715128240149,-271.752468,0.00015471,2]
[326602614,1715128240159,-1727.73,0.00015471,2]
[326602615,1715128240169,-500.0,0.00015471,2]
[326602616,1715128240179,-1875.79,0.00015471,2]
[326602617,1715128240189,-2016.03,0.00015471,2]
[326602618,1715128240199,-1943.14,0.00015471,2]
[326602619,1715128240208,-500.0,0.00015471,2]
[326602620,1715128240218,-3163.05,0.00015471,2]
[326602621,1715128240228,-500.0,0.00015471,2]
[326602622,1715128240237,-500.0,0.00015471,2]
[326602623,1715128240247,-785.32231489,0.00015472,2]
[326602624,1715128240257,-500.0,0.00015472,2]
[326602625,1715128240267,-500.0,0.00015472,2]
[326602626,1715128240276,-521.57,0.00015472,2]
[326602627,1715128240286,-500.0,0.00015472,2]
[326602628,1715128240295,-500.0,0.00015472,2]
[326602629,1715128240305,-500.0,0.00015472,2]
[326602630,1715128240321,-1130.09,0.00015472,2]
[326602631,1715128240331,-500.0,0.00015472,2]
[326602632,1715128240341,-500.0,0.00015472,2]
[326602633,1715128240351,-500.0,0.00015472,2]
[326602634,1715128240360,-572.55,0.00015472,2]
[326602635,1715128240369,-500.0,0.00015472,2]
[326602636,1715128240379,-557.19,0.00015472,2]
[326602637,1715128240389,-500.0,0.00015472,2]
[326602638,1715128240398,-500.0,0.00015472,2]
[326602639,1715128240408,-500.0,0.00015472,2]
[326602640,1715128240417,-500.0,0.00015472,2]
[326602641,1715128240426,-500.0,0.00015472,2]
[326602642,1715128240436,-500.0,0.00015472,2]
[326602643,1715128240445,-1076.86,0.00015472,2]
[326602644,1715128240455,-238.06251192,0.00015472,2]
[326602645,1715128240464,-152.00823154,0.00015472,2]
[326602646,1715128240473,-500.0,0.00015472,2]
[326602647,1715128240483,-2304.01,0.00015472,2]
[326602648,1715128240492,-1065.98,0.00015472,2]
[326602649,1715128240502,-500.0,0.00015472,2]
[326602650,1715128240512,-500.0,0.00015472,2]
[326602651,1715128240521,-12276.08,0.00015472,2]
[326602652,1715128240530,-569.66332142,0.00015472,2]
[326602653,1715128240539,-672.34,0.00015472,2]
[326602656,1715128240548,-500.0,0.00015472,2]
[326602658,1715128240562,-500.0,0.00015472,2]
[326602661,1715128240571,-500.0,0.00015472,2]
[326602663,1715128240580,-3993.24,0.00015472,2]
[326602666,1715128240589,-500.38,0.00015472,2]
[326602668,1715128240598,-500.0,0.00015472,2]
[326602670,1715128240608,-942.02,0.00015472,2]
[326602672,1715128240617,-151.0,0.00015472,2]
[326602674,1715128240626,-151.0,0.00015472,2]
[326602676,1715128240636,-151.0,0.00015472,2]
[326602678,1715128240645,-151.0,0.00015472,2]
[326602680,1715128240659,-500.0,0.00015472,2]
[326602682,1715128240672,-500.0,0.00015472,2]
[326602684,1715128240681,-207.95,0.00015472,2]
[326602686,1715128240691,-500.0,0.00015472,2]
[326602688,1715128240702,-500.0,0.00015472,2]
[326602690,1715128240711,-500.0,0.00015472,2]
[326602692,1715128240721,-500.0,0.00015472,2]
[326602694,1715128240732,-500.0,0.00015472,2]
[326602696,1715128240741,-402.37,0.00015473,2]
[326602698,1715128240751,-500.0,0.00015473,2]
[326602700,1715128240761,-500.0,0.00015473,2]
[326602701,1715128240771,-733.0,0.00015473,2]
[326602702,1715128240780,-500.0,0.00015473,2]
[326602703,1715128240790,-500.0,0.00015473,2]
[326602705,1715128240800,-500.0,0.00015473,2]
[326602707,1715128240810,-1104.25,0.00015473,2]
[326602709,1715128240819,-500.0,0.00015473,2]
[326602711,1715128240829,-500.0,0.00015474,2]
[326602713,1715128240838,-500.0,0.00015474,2]
[326602715,1715128240849,-500.0,0.00015474,2]
[326602717,1715128240858,-151.0,0.00015474,2]
[326602719,1715128240867,-152.67515821,0.000155,2]
[326602721,1715128240877,-306.0,0.000156,2]
[326602723,1715128240886,-153.0,0.000156,2]
[326602725,1715128240896,-153.0,0.000156,2]
[326602727,1715128240905,-306.0,0.000156,2]
[326602729,1715128240915,-168.0165456,0.000156,2]
[326602731,1715128240924,-153.0,0.000156,2]
[326602733,1715128240934,-159.493995,0.000156,2]
[326602735,1715128240944,-153.0,0.000156,2]
[326602737,1715128240953,-153.0,0.000156,2]
[326602738,1715128240963,-153.0,0.000156,2]
[326602739,1715128240973,-153.0,0.000156,2]
[326602740,1715128240982,-3725.81,0.00015744,2]
[326602741,1715128240992,-500.0,0.00015744,2]
[326602742,1715128241001,-3174.63,0.00015744,2]
[326602743,1715128241011,-500.0,0.00015744,2]
[326602744,1715128241021,-500.0,0.00015744,2]
[326602745,1715128241030,-500.0,0.00015744,2]
[326602746,1715128241040,-2373.36,0.00015744,2]
[326602747,1715128241049,-500.0,0.00015744,2]
[326602748,1715128241060,-913.98,0.00015744,2]
[326602749,1715128241069,-500.0,0.00015744,2]
[326602750,1715128241079,-1261.8,0.00015744,2]
[326602751,1715128241089,-500.0,0.00015745,2]
[326602752,1715128241098,-500.0,0.00015745,2]
[326602753,1715128241107,-964.43,0.00015745,2]
[326602754,1715128241117,-1180.48,0.00015745,2]
[326602755,1715128241127,-574.01,0.00015745,2]
[326602756,1715128241137,-500.0,0.00015745,2]
[326602757,1715128241146,-500.0,0.00015745,2]
[326602758,1715128241156,-1860.14,0.00015745,2]
[326602759,1715128241166,-1135.95,0.00015745,2]
[326602760,1715128241176,-2128.89,0.00015745,2]
[326602761,1715128241185,-151.0,0.00015745,2]
[326602762,1715128241195,-1727.73,0.00015745,2]
[326602763,1715128241205,-500.0,0.00015745,2]
[326602764,1715128241215,-1875.79,0.00015745,2]
[326602765,1715128241224,-2016.03,0.00015745,2]
[326602766,1715128241234,-1943.14,0.00015745,2]
[326602767,1715128241244,-500.0,0.00015745,2]
[326602768,1715128241253,-3163.05,0.00015745,2]
[326602769,1715128241263,-500.0,0.00015745,2]
[326602770,1715128241272,-167.85937445,0.00015746,5]
[326602771,1715128241282,-500.0,0.00015746,2]
[326602772,1715128241291,-500.0,0.00015746,2]
[326602773,1715128241301,-521.57,0.00015746,2]
[326602774,1715128241313,-500.0,0.00015746,2]
[326602775,1715128241322,-500.0,0.00015746,2]
[326602776,1715128241332,-500.0,0.00015746,2]
[326602777,1715128241342,-1130.09,0.00015746,2]
[326602778,1715128241352,-322.48803887,0.00015746,2]
[326602779,1715128241362,-500.0,0.00015746,2]
[326602780,1715128241371,-500.0,0.00015746,2]
[326602781,1715128241381,-572.55,0.00015746,2]
[326602782,1715128241390,-500.0,0.00015746,2]
[326602783,1715128241400,-557.19,0.00015746,2]
[326602784,1715128241410,-500.0,0.00015746,2]
[326602785,1715128241419,-500.0,0.00015746,2]
[326602786,1715128241429,-500.0,0.00015746,2]
[326602787,1715128241439,-500.0,0.00015746,2]
[326602788,1715128241448,-1076.86,0.00015746,2]
[326602789,1715128241458,-2304.01,0.00015746,2]
[326602790,1715128241467,-1065.98,0.00015746,2]
[326602791,1715128241477,-500.0,0.00015746,2]
[326602792,1715128241487,-500.0,0.00015746,2]
[326602793,1715128241496,-12276.08,0.00015746,2]
[326602794,1715128241506,-672.34,0.00015746,2]
[326602795,1715128241516,-500.0,0.00015746,2]
[326602796,1715128241526,-500.0,0.00015746,2]
[326602797,1715128241536,-3993.24,0.00015746,2]
[326602798,1715128241545,-500.38,0.00015746,2]
[326602799,1715128241555,-500.0,0.00015746,2]
[326602800,1715128241567,-942.02,0.00015746,2]
[326602801,1715128241576,-500.0,0.00015746,2]
[326602802,1715128241586,-500.0,0.00015746,2]
[326602803,1715128241595,-500.0,0.00015746,2]
[326602804,1715128241605,-500.0,0.00015746,2]
[326602805,1715128241614,-500.0,0.00015746,2]
[326602806,1715128241623,-285.11656858,0.00015747,2]
[326602807,1715128241633,-1576.87228316,0.00015747,2]
[326602808,1715128241643,-1492.55196417,0.00015747,2]
[326602809,1715128241652,-206.41879743,0.00015747,2]
[326602810,1715128241667,-154.80542727,0.00015747,2]
[326602811,1715128241677,-500.0,0.00015747,2]
[326602812,1715128241686,-500.0,0.00015747,2]
[326602813,1715128241696,-733.0,0.00015747,2]
[326602814,1715128241707,-500.0,0.00015747,2]
[326602815,1715128241716,-500.0,0.00015747,2]
[326602816,1715128241726,-500.0,0.00015747,2]
[326602817,1715128241737,-1104.25,0.00015747,2]
[326602818,1715128241746,-500.0,0.00015747,2]
[326602819,1715128241755,-200.1799128,0.00015748,2]
[326602820,1715128241765,-235.93722029,0.00015748,2]
[326602821,1715128241774,-500.0,0.00015748,2]
[326602822,1715128241783,-500.0,0.00015748,2]
[326602823,1715128241792,-500.0,0.00015748,2]
[326602824,1715128241802,-177.638096,0.0001589,2]
[326602825,1715128241813,-165.109654,0.0001589,2]
[326602826,1715128241822,-247.038089,0.0001589,2]
[326602827,1715128241831,-175.34782,0.0001589,2]
[326602828,1715128241840,-175.18239,0.0001589,2]
[326602829,1715128241850,-2529.71630149,0.00016018,2]
[326602830,1715128242000,-420.3880359,0.00015198,2]
[326602841,1715128245017,-79.6119641,0.00015198,2]
[326602845,1715128245026,-500.0,0.00015198,2]
[326602848,1715128245036,-500.0,0.00015198,2]
[326602850,1715128245045,-426.8880359,0.00015198,2]
[326602873,1715128688672,2395.74003987,0.00015,2]
[326602874,1715128695743,154.73694719,9.999e-05,2]
[326602879,1715128894312,5000.0,0.000211,9]
[326603006,1715128916288,346.16310535,0.000211,9]
[326603138,1715129263149,1493.5731825,9.999e-05,2]
[326603269,1715129433080,-152.67515821,0.00015095,2]
[326603271,1715129433090,-368.60051746,0.00015095,2]
[326603274,1715129433100,-193.79734343,0.00015193,2]
[326603277,1715129433111,-427.54944519,0.00015193,2]
[326603284,1715129433124,-99.26668604,0.00015193,2]
[326603286,1715129433133,-159.2005396,0.00015193,2]
[326603288,1715129433143,-257.85406036,0.00015193,2]
[326603439,1715129439704,-1238.60267222,0.00015193,2]
[326603441,1715129439714,-155.76071258,0.00015193,2]
[326603443,1715129439724,-212.96936755,0.00015193,2]
[326603445,1715129439734,-97.72699544,0.00015193,2]
[326603447,1715129439747,-242.57585474,0.00015193,2]
[326603450,1715129439757,-158.07345455,0.00015194,2]
[326603454,1715129439774,-254.28664054,0.00015194,2]
[326603456,1715129439787,-785.32231489,0.00015194,2]
[326603458,1715129439797,-357.61778551,0.00015194,2]
[326603460,1715129439807,-188.32125881,0.00015194,2]
[326603462,1715129439816,-205.03706654,0.00015194,2]
[326603463,1715129439826,-267.20341815,0.00015194,2]
[326603464,1715129439836,-227.62198981,0.00015194,2]
[326603465,1715129439846,-154.84504687,0.00015194,2]
[326603466,1715129439856,-155.37166991,0.00015194,2]
[326603467,1715129439867,-500.0,0.00015194,2]
[326603468,1715129439877,-3158.33,0.00015194,2]
[326603469,1715129439887,-3570.57,0.00015194,2]
[326603470,1715129439897,-500.0,0.00015194,2]
[326603471,1715129439907,-500.0,0.00015194,2]
[326603472,1715129439921,-500.0,0.00015194,2]
[326603473,1715129439931,-500.0,0.00015194,2]
[326603474,1715129439940,-500.0,0.00015194,2]
[326603475,1715129439950,-2274.47,0.00015194,2]
[326603476,1715129439960,-875.9,0.00015194,2]
[326603477,1715129439969,-1275.34,0.00015194,2]
[326603478,1715129439979,-500.0,0.00015194,2]
[326603479,1715129439989,-500.0,0.00015194,2]
[326603480,1715129439999,-500.0,0.00015194,2]
[326603481,1715129440009,-500.0,0.00015194,2]
[326603482,1715129440019,-500.0,0.00015194,2]
[326603483,1715129440029,-250.20884188,0.00015195,2]
[326603484,1715129440039,-528.7,0.00015195,2]
[326603485,1715129440051,-500.0,0.00015195,2]
[326603486,1715129440061,-500.0,0.00015195,2]
[326603487,1715129440071,-500.0,0.00015195,2]
[326603488,1715129440080,-500.0,0.00015195,2]
[326603489,1715129440091,-1145.06,0.00015195,2]
[326603490,1715129440100,-580.23,0.00015195,2]
[326603491,1715129440113,-500.0,0.00015195,2]
[326603492,1715129440123,-500.0,0.00015195,2]
[326603493,1715129440136,-560.63,0.00015195,2]
[326603494,1715129440146,-500.0,0.00015195,2]
[326603495,1715129440156,-500.0,0.00015195,2]
[326603496,1715129440168,-500.0,0.00015195,2]
[326603497,1715129440177,-500.0,0.00015195,2]
[326603498,1715129440187,-500.0,0.00015195,2]
[326603499,1715129440197,-1134.47,0.00015195,2]
[326603500,1715129440206,-500.0,0.00015195,2]
[326603501,1715129440216,-411.33645221,0.00015195,2]
[326603502,1715129440227,-1065.98,0.00015195,2]
[326603503,1715129440236,-500.84800805,0.00015195,2]
[326603504,1715129440246,-500.0,0.00015195,2]
[326603505,1715129440256,-500.0,0.00015195,2]
[326603506,1715129440266,-500.0,0.00015195,2]
[326603507,1715129440276,-583.93,0.00015195,2]
[326603508,1715129440286,-500.0,0.00015195,2]
[326603509,1715129440295,-12276.08,0.00015195,2]
[326603510,1715129440305,-500.0,0.00015195,2]
[326603511,1715129440314,-500.0,0.00015195,2]
[326603512,1715129440324,-971.69,0.00015195,2]
[326603513,1715129440334,-500.0,0.00015195,2]
[326603514,1715129440344,-1265.57,0.00015195,2]
[326603515,1715129440354,-1088.62,0.00015195,2]
[326603516,1715129440364,-672.34,0.00015195,2]
[326603517,1715129440373,-500.0,0.00015195,2]
[326603518,1715129440383,-500.0,0.00015195,2]
[326603519,1715129440393,-3993.24,0.00015195,2]
[326603520,1715129440402,-500.38,0.00015195,2]
[326603521,1715129440415,-1782.64,0.00015195,2]
[326603522,1715129440424,-500.0,0.00015195,2]
[326603523,1715129440434,-2165.67,0.00015195,2]
[326603524,1715129440444,-500.0,0.00015195,2]
[326603525,1715129440454,-500.0,0.00015195,2]
[326603526,1715129440464,-500.0,0.00015195,2]
[326603527,1715129440474,-1932.03,0.00015195,2]
[326603528,1715129440484,-942.02,0.00015195,2]
[326603529,1715129440494,-1655.74,0.00015195,2]
[326603530,1715129440504,-500.0,0.00015195,2]
[326603531,1715129440514,-1797.64,0.00015195,2]
[326603532,1715129440524,-500.0,0.00015195,2]
[326603533,1715129440534,-563.16,0.00015195,2]
[326603534,1715129440544,-1862.18,0.00015195,2]
[326603535,1715129440554,-3031.26,0.00015195,2]
[326603536,1715129440564,-500.0,0.00015195,2]
[326603537,1715129440574,-500.0,0.00015195,2]
[326603538,1715129440583,-500.0,0.00015195,2]
[326603539,1715129440594,-2304.01,0.00015195,2]